[Event "Titled Tuesday Blitz May 2 Late 2023"]
[White "Oliveira, Tiago Batista"]
[Black "Kohler, Aran"]
[WhiteFideId "2108291"]
[BlackFideId "1002856"]
[WhiteElo "1962"]
[BlackElo "2010"]
[Result "0-1"]
[Round "05"]
[TimeControl "180+2"]
[Date "2023.05.02"]
[WhiteClock "0:00:02"]
[BlackClock "0:00:31"]

1. d4 {[%clk 0:03:00]}  d5 {[%clk 0:02:59]} 2. c4 {[%clk 0:03:00]}  c6 {[%clk 0:02:59]} 3. Nf3 {[%clk 0:03:00]}  Nf6 {[%clk 0:02:59]} 4. Qc2 {[%clk 0:03:00]}  a6 {[%clk 0:02:56]} 5. g3 {[%clk 0:02:56]}  dxc4 {[%clk 0:02:55]} 6. Qxc4 {[%clk 0:02:54]}  b5 {[%clk 0:02:55]} 7. Qc2 {[%clk 0:02:54]}  Bb7 {[%clk 0:02:55]} 8. Bg2 {[%clk 0:02:53]}  Nbd7 {[%clk 0:02:55]} 9. O-O {[%clk 0:02:53]}  e6 {[%clk 0:02:55]} 10. Rd1 {[%clk 0:02:53]}  Bd6 {[%clk 0:02:51]} 11. e4 {[%clk 0:02:52]}  Bc7 {[%clk 0:02:39]} 12. Nbd2 {[%clk 0:02:48]}  O-O {[%clk 0:02:37]} 13. e5 {[%clk 0:02:38]}  Nd5 {[%clk 0:02:36]} 14. Ne4 {[%clk 0:02:38]}  h6 {[%clk 0:02:28]} 15. a3 {[%clk 0:02:18]}  a5 {[%clk 0:02:25]} 16. Bd2 {[%clk 0:02:16]}  Qe7 {[%clk 0:02:21]} 17. Rac1 {[%clk 0:02:14]}  a4 {[%clk 0:02:17]} 18. g4 {[%clk 0:02:10]}  f6 {[%clk 0:02:01]} 19. exf6 {[%clk 0:02:06]}  N5xf6 {[%clk 0:02:00]} 20. g5 {[%clk 0:02:02]}  Nxe4 {[%clk 0:01:50]} 21. Qxe4 {[%clk 0:02:02]}  h5 {[%clk 0:01:41]} 22. Ne5 {[%clk 0:01:52]}  Nxe5 {[%clk 0:01:37]} 23. dxe5 {[%clk 0:01:53]}  Rab8 {[%clk 0:01:36]} 24. Bb4 {[%clk 0:01:51]}  c5 {[%clk 0:01:28]} 25. Bxc5 {[%clk 0:01:31]}  Qxg5 {[%clk 0:01:11]} 26. Be3 {[%clk 0:01:15]}  Bxe4 {[%clk 0:01:10]} 27. Bxg5 {[%clk 0:01:14]}  Bxg2 {[%clk 0:01:10]} 28. Rxc7 {[%clk 0:01:08]}  Bd5 {[%clk 0:01:10]} 29. Rdc1 {[%clk 0:00:57]}  Rf7 {[%clk 0:01:04]} 30. Rxf7 {[%clk 0:00:50]}  Kxf7 {[%clk 0:01:03]} 31. Rc7+ {[%clk 0:00:50]}  Kg6 {[%clk 0:01:04]} 32. f4 {[%clk 0:00:37]}  Kf5 {[%clk 0:00:58]} 33. Kf2 {[%clk 0:00:25]}  g6 {[%clk 0:00:52]} 34. h3 {[%clk 0:00:22]}  Ke4 {[%clk 0:00:52]} 35. Rc3 {[%clk 0:00:16]}  b4 {[%clk 0:00:50]} 36. Re3+ {[%clk 0:00:15]}  Kd4 {[%clk 0:00:50]} 37. Re2 {[%clk 0:00:09]}  bxa3 {[%clk 0:00:45]} 38. bxa3 {[%clk 0:00:08]}  Rb3 {[%clk 0:00:45]} 39. Be7 {[%clk 0:00:07]}  Rxh3 {[%clk 0:00:42]} 40. Rd2+ {[%clk 0:00:06]}  Ke4 {[%clk 0:00:40]} 41. Re2+ {[%clk 0:00:06]}  Kxf4 {[%clk 0:00:38]} 42. Re1 {[%clk 0:00:05]}  Rh2+ {[%clk 0:00:38]} 43. Kg1 {[%clk 0:00:04]}  Rg2+ {[%clk 0:00:38]} 44. Kf1 {[%clk 0:00:04]}  Ra2 {[%clk 0:00:33]} 45. Rc1 {[%clk 0:00:02]}  g5 {[%clk 0:00:31]} 0-1


[Site "https://www.chess.com"]

[Event "Titled Tuesday Blitz May 2 Late 2023"]
[White "Hartikainen, Jarmo"]
[Black "Harish, Neeraj"]
[WhiteFideId "503134"]
[BlackFideId "30958130"]
[WhiteElo "2108"]
[BlackElo "1965"]
[Result "1-0"]
[Round "05"]
[TimeControl "180+2"]
[Date "2023.05.02"]
[WhiteClock "0:00:34"]
[BlackClock "0:00:14"]

1. e4 {[%clk 0:03:00]}  e5 {[%clk 0:02:53]} 2. Nf3 {[%clk 0:03:00]}  Nc6 {[%clk 0:02:52]} 3. Bc4 {[%clk 0:02:59]}  Nf6 {[%clk 0:02:51]} 4. Ng5 {[%clk 0:02:58]}  d5 {[%clk 0:02:51]} 5. exd5 {[%clk 0:02:58]}  Na5 {[%clk 0:02:52]} 6. Bb5+ {[%clk 0:02:58]}  c6 {[%clk 0:02:52]} 7. dxc6 {[%clk 0:02:59]}  bxc6 {[%clk 0:02:53]} 8. Bd3 {[%clk 0:02:58]}  Nd5 {[%clk 0:02:49]} 9. Nf3 {[%clk 0:02:52]}  Bd6 {[%clk 0:02:31]} 10. O-O {[%clk 0:02:49]}  O-O {[%clk 0:02:31]} 11. Re1 {[%clk 0:02:46]}  Re8 {[%clk 0:02:23]} 12. Nc3 {[%clk 0:02:42]}  f5 {[%clk 0:02:21]} 13. Bf1 {[%clk 0:02:31]}  e4 {[%clk 0:02:13]} 14. Nd4 {[%clk 0:02:20]}  Qc7 {[%clk 0:01:44]} 15. g3 {[%clk 0:02:02]}  Nf6 {[%clk 0:01:33]} 16. Bg2 {[%clk 0:01:50]}  Be5 {[%clk 0:01:24]} 17. Nde2 {[%clk 0:01:40]}  Ba6 {[%clk 0:01:12]} 18. d4 {[%clk 0:01:10]}  exd3 {[%clk 0:00:52]} 19. cxd3 {[%clk 0:01:10]}  Rad8 {[%clk 0:00:51]} 20. d4 {[%clk 0:00:56]}  Bxe2 {[%clk 0:00:25]} 21. Nxe2 {[%clk 0:00:55]}  c5 {[%clk 0:00:20]} 22. Be3 {[%clk 0:00:42]}  Nc4 {[%clk 0:00:18]} 23. Qb3 {[%clk 0:00:37]}  Qf7 {[%clk 0:00:14]} 24. dxe5 {[%clk 0:00:34]} 1-0


[Site "https://www.chess.com"]

[Event "Titled Tuesday Blitz May 2 Late 2023"]
[White "Georg, Heinz"]
[Black "Joubert, Dantelle"]
[WhiteFideId "4607295"]
[BlackFideId "14310813"]
[WhiteElo "2147"]
[BlackElo "1507"]
[Result "1-0"]
[Round "05"]
[TimeControl "180+2"]
[Date "2023.05.02"]
[WhiteClock "0:00:14"]
[BlackClock "0:00:01"]

1. b4 {[%clk 0:03:00]}  f5 {[%clk 0:02:56]} 2. Bb2 {[%clk 0:02:59]}  Nf6 {[%clk 0:02:56]} 3. c4 {[%clk 0:02:53]}  e6 {[%clk 0:02:54]} 4. b5 {[%clk 0:02:53]}  d5 {[%clk 0:02:53]} 5. e3 {[%clk 0:02:50]}  c6 {[%clk 0:02:52]} 6. a4 {[%clk 0:02:47]}  Bd6 {[%clk 0:02:50]} 7. d4 {[%clk 0:02:46]}  O-O {[%clk 0:02:50]} 8. Nf3 {[%clk 0:02:46]}  Ne4 {[%clk 0:02:46]} 9. Nbd2 {[%clk 0:02:44]}  Nd7 {[%clk 0:02:43]} 10. g3 {[%clk 0:02:35]}  Bb4 {[%clk 0:02:12]} 11. Ba3 {[%clk 0:02:28]}  Bc3 {[%clk 0:02:07]} 12. Rc1 {[%clk 0:02:25]}  Qa5 {[%clk 0:02:05]} 13. Bd3 {[%clk 0:02:02]}  Re8 {[%clk 0:01:30]} 14. Qc2 {[%clk 0:01:54]}  e5 {[%clk 0:01:14]} 15. Bxe4 {[%clk 0:01:41]}  dxe4 {[%clk 0:01:07]} 16. Qxc3 {[%clk 0:01:40]}  Qxc3 {[%clk 0:01:00]} 17. Rxc3 {[%clk 0:01:41]}  exf3 {[%clk 0:00:56]} 18. Nxf3 {[%clk 0:01:42]}  exd4 {[%clk 0:00:49]} 19. Nxd4 {[%clk 0:01:42]}  Ne5 {[%clk 0:00:49]} 20. O-O {[%clk 0:01:33]}  Bd7 {[%clk 0:00:40]} 21. Kg2 {[%clk 0:01:27]}  a6 {[%clk 0:00:39]} 22. b6 {[%clk 0:01:22]}  Rac8 {[%clk 0:00:28]} 23. Nb3 {[%clk 0:01:16]}  c5 {[%clk 0:00:19]} 24. Nxc5 {[%clk 0:01:15]}  Bc6+ {[%clk 0:00:18]} 25. f3 {[%clk 0:01:14]}  g5 {[%clk 0:00:17]} 26. e4 {[%clk 0:00:52]}  g4 {[%clk 0:00:14]} 27. fxg4 {[%clk 0:00:51]}  fxe4 {[%clk 0:00:11]} 28. Kh3 {[%clk 0:00:43]}  Nf3 {[%clk 0:00:07]} 29. Re3 {[%clk 0:00:35]}  Ng5+ {[%clk 0:00:04]} 30. Kg2 {[%clk 0:00:34]}  Nf3 {[%clk 0:00:04]} 31. h4 {[%clk 0:00:30]}  Nd2 {[%clk 0:00:04]} 32. Rc1 {[%clk 0:00:26]}  Rcd8 {[%clk 0:00:02]} 33. Kh3 {[%clk 0:00:20]}  Nf3 {[%clk 0:00:02]} 34. g5 {[%clk 0:00:15]}  Rd2 {[%clk 0:00:02]} 35. Kg4 {[%clk 0:00:14]}  Nh2+ {[%clk 0:00:02]} 36. Kf4 {[%clk 0:00:14]}  Rf8+ {[%clk 0:00:02]} 37. Ke5 {[%clk 0:00:14]}  Rd5+ {[%clk 0:00:02]} 38. cxd5 {[%clk 0:00:14]}  Re8+ {[%clk 0:00:01]} 39. Kd6 {[%clk 0:00:14]} 1-0


[Site "https://www.chess.com"]

[Event "Titled Tuesday Blitz May 2 Late 2023"]
[White "Andreikin, Dmitry"]
[Black "Hakobyan, Aram"]
[WhiteFideId "4158814"]
[BlackFideId "13306677"]
[WhiteElo "2736"]
[BlackElo "2584"]
[Result "1/2-1/2"]
[Round "06"]
[TimeControl "180+2"]
[Date "2023.05.02"]
[WhiteClock "0:00:05"]
[BlackClock "0:00:08"]

1. d4 {[%clk 0:03:00]}  Nf6 {[%clk 0:02:59]} 2. c4 {[%clk 0:03:00]}  e6 {[%clk 0:02:59]} 3. Nf3 {[%clk 0:02:59]}  d5 {[%clk 0:02:57]} 4. Nc3 {[%clk 0:03:00]}  c5 {[%clk 0:02:54]} 5. cxd5 {[%clk 0:02:59]}  Nxd5 {[%clk 0:02:55]} 6. e4 {[%clk 0:02:58]}  Nxc3 {[%clk 0:02:55]} 7. bxc3 {[%clk 0:02:59]}  cxd4 {[%clk 0:02:56]} 8. cxd4 {[%clk 0:03:00]}  Bb4+ {[%clk 0:02:56]} 9. Bd2 {[%clk 0:03:00]}  Bxd2+ {[%clk 0:02:57]} 10. Qxd2 {[%clk 0:03:01]}  O-O {[%clk 0:02:56]} 11. Bc4 {[%clk 0:03:01]}  Nd7 {[%clk 0:02:55]} 12. O-O {[%clk 0:03:01]}  b6 {[%clk 0:02:54]} 13. Rfe1 {[%clk 0:03:00]}  Bb7 {[%clk 0:02:54]} 14. Rad1 {[%clk 0:03:01]}  Rc8 {[%clk 0:02:52]} 15. Bb3 {[%clk 0:03:01]}  h6 {[%clk 0:02:50]} 16. h3 {[%clk 0:02:59]}  Re8 {[%clk 0:02:50]} 17. Qf4 {[%clk 0:02:56]}  Nf6 {[%clk 0:02:40]} 18. Ne5 {[%clk 0:02:55]}  Re7 {[%clk 0:02:34]} 19. Rd3 {[%clk 0:02:23]}  Rec7 {[%clk 0:02:26]} 20. d5 {[%clk 0:02:09]}  exd5 {[%clk 0:02:16]} 21. exd5 {[%clk 0:02:10]}  Qd6 {[%clk 0:02:14]} 22. Qf5 {[%clk 0:02:02]}  Re7 {[%clk 0:01:42]} 23. Rde3 {[%clk 0:01:55]}  Rce8 {[%clk 0:01:30]} 24. Nc4 {[%clk 0:01:27]}  Qxd5 {[%clk 0:01:28]} 25. Qxd5 {[%clk 0:01:10]}  Nxd5 {[%clk 0:01:29]} 26. Rxe7 {[%clk 0:01:10]}  Rxe7 {[%clk 0:01:30]} 27. Rd1 {[%clk 0:01:10]}  Nf4 {[%clk 0:01:14]} 28. Ne3 {[%clk 0:00:56]}  g6 {[%clk 0:01:02]} 29. Kh2 {[%clk 0:00:54]}  Kg7 {[%clk 0:01:01]} 30. h4 {[%clk 0:00:52]}  Ba6 {[%clk 0:00:39]} 31. Rd6 {[%clk 0:00:45]}  Bb5 {[%clk 0:00:28]} 32. Rd4 {[%clk 0:00:23]}  Ne6 {[%clk 0:00:24]} 33. Bxe6 {[%clk 0:00:16]}  Rxe6 {[%clk 0:00:25]} 34. Kg3 {[%clk 0:00:15]}  Bc6 {[%clk 0:00:23]} 35. Rd8 {[%clk 0:00:11]}  Re5 {[%clk 0:00:19]} 36. Rc8 {[%clk 0:00:10]}  Rc5 {[%clk 0:00:18]} 37. Rc7 {[%clk 0:00:09]}  a5 {[%clk 0:00:16]} 38. h5 {[%clk 0:00:07]}  gxh5 {[%clk 0:00:13]} 39. Kf4 {[%clk 0:00:07]}  Kg6 {[%clk 0:00:12]} 40. f3 {[%clk 0:00:05]}  h4 {[%clk 0:00:11]} 41. Rc8 {[%clk 0:00:05]}  h5 {[%clk 0:00:09]} 42. Rg8+ {[%clk 0:00:05]}  Kf6 {[%clk 0:00:09]} 43. Rh8 {[%clk 0:00:05]}  Kg7 {[%clk 0:00:06]} 44. Rb8 {[%clk 0:00:04]}  b5 {[%clk 0:00:04]} 45. Nf5+ {[%clk 0:00:05]}  Kf6 {[%clk 0:00:05]} 46. Nd4 {[%clk 0:00:04]}  Bd7 {[%clk 0:00:05]} 47. Rb6+ {[%clk 0:00:04]}  Kg7 {[%clk 0:00:05]} 48. a3 {[%clk 0:00:03]}  Rc4 {[%clk 0:00:03]} 49. Ke5 {[%clk 0:00:03]}  b4 {[%clk 0:00:04]} 50. axb4 {[%clk 0:00:02]}  Rxb4 {[%clk 0:00:05]} 51. Rd6 {[%clk 0:00:02]}  Bc8 {[%clk 0:00:03]} 52. Rc6 {[%clk 0:00:02]}  Bd7 {[%clk 0:00:03]} 53. Rd6 {[%clk 0:00:03]}  Rb7 {[%clk 0:00:04]} 54. Ra6 {[%clk 0:00:03]}  a4 {[%clk 0:00:04]} 55. Nf5+ {[%clk 0:00:02]}  Bxf5 {[%clk 0:00:04]} 56. Kxf5 {[%clk 0:00:03]}  Rb2 {[%clk 0:00:04]} 57. Rxa4 {[%clk 0:00:03]}  Rxg2 {[%clk 0:00:04]} 58. Rxh4 {[%clk 0:00:04]}  Kh6 {[%clk 0:00:04]} 59. Kf6 {[%clk 0:00:03]}  Rf2 {[%clk 0:00:03]} 60. Rh3 {[%clk 0:00:03]}  Rg2 {[%clk 0:00:02]} 61. f4 {[%clk 0:00:03]}  Rg4 {[%clk 0:00:02]} 62. f5 {[%clk 0:00:03]}  Rf4 {[%clk 0:00:02]} 63. Rd3 {[%clk 0:00:03]}  h4 {[%clk 0:00:02]} 64. Rd8 {[%clk 0:00:04]}  Kh5 {[%clk 0:00:03]} 65. Rh8+ {[%clk 0:00:04]}  Kg4 {[%clk 0:00:04]} 66. Rg8+ {[%clk 0:00:04]}  Kf3 {[%clk 0:00:04]} 67. Rh8 {[%clk 0:00:04]}  Kg3 {[%clk 0:00:04]} 68. Rg8+ {[%clk 0:00:04]}  Kh2 {[%clk 0:00:02]} 69. Rg7 {[%clk 0:00:04]}  h3 {[%clk 0:00:02]} 70. Rxf7 {[%clk 0:00:04]}  Kg3 {[%clk 0:00:03]} 71. Rh7 {[%clk 0:00:05]}  Rh4 {[%clk 0:00:03]} 72. Rg7+ {[%clk 0:00:03]}  Kf2 {[%clk 0:00:03]} 73. Ra7 {[%clk 0:00:03]}  h2 {[%clk 0:00:04]} 74. Ra1 {[%clk 0:00:03]}  h1=Q {[%clk 0:00:04]} 75. Rxh1 {[%clk 0:00:03]}  Rxh1 {[%clk 0:00:05]} 76. Ke7 {[%clk 0:00:03]}  Re1+ {[%clk 0:00:05]} 77. Kd7 {[%clk 0:00:03]}  Kg3 {[%clk 0:00:05]} 78. f6 {[%clk 0:00:04]}  Rf1 {[%clk 0:00:05]} 79. Ke7 {[%clk 0:00:04]}  Kg4 {[%clk 0:00:06]} 80. f7 {[%clk 0:00:04]}  Kg5 {[%clk 0:00:07]} 81. f8=Q {[%clk 0:00:04]}  Rxf8 {[%clk 0:00:08]} 82. Kxf8 {[%clk 0:00:05]} 1/2-1/2


[Site "https://www.chess.com"]

[Event "Titled Tuesday Blitz May 2 Late 2023"]
[White "Chigaev, Maksim"]
[Black "Nakamura, Hikaru"]
[WhiteFideId "4108116"]
[BlackFideId "2016192"]
[WhiteElo "2547"]
[BlackElo "2885"]
[Result "0-1"]
[Round "06"]
[TimeControl "180+2"]
[Date "2023.05.02"]
[WhiteClock "0:00:06"]
[BlackClock "0:00:52"]

1. d4 {[%clk 0:03:00]}  Nf6 {[%clk 0:02:58]} 2. Bg5 {[%clk 0:03:01]}  c5 {[%clk 0:02:57]} 3. d5 {[%clk 0:03:00]}  g6 {[%clk 0:02:53]} 4. Bxf6 {[%clk 0:02:58]}  exf6 {[%clk 0:02:53]} 5. Nd2 {[%clk 0:02:57]}  f5 {[%clk 0:02:53]} 6. c3 {[%clk 0:02:57]}  Bg7 {[%clk 0:02:52]} 7. e3 {[%clk 0:02:57]}  O-O {[%clk 0:02:52]} 8. g3 {[%clk 0:02:57]}  d6 {[%clk 0:02:53]} 9. Bg2 {[%clk 0:02:57]}  b5 {[%clk 0:02:53]} 10. h4 {[%clk 0:02:55]}  b4 {[%clk 0:02:51]} 11. Ne2 {[%clk 0:02:47]}  Ba6 {[%clk 0:02:47]} 12. Qc2 {[%clk 0:02:29]}  bxc3 {[%clk 0:02:42]} 13. bxc3 {[%clk 0:02:30]}  Nd7 {[%clk 0:02:38]} 14. Rc1 {[%clk 0:02:21]}  Ne5 {[%clk 0:02:30]} 15. c4 {[%clk 0:02:14]}  Rb8 {[%clk 0:02:28]} 16. O-O {[%clk 0:01:24]}  Rb2 {[%clk 0:02:27]} 17. Qxb2 {[%clk 0:01:25]}  Nf3+ {[%clk 0:02:27]} 18. Bxf3 {[%clk 0:01:25]}  Bxb2 {[%clk 0:02:28]} 19. Rc2 {[%clk 0:01:26]}  Bf6 {[%clk 0:02:23]} 20. e4 {[%clk 0:01:11]}  Bc8 {[%clk 0:02:20]} 21. Nf4 {[%clk 0:01:08]}  Re8 {[%clk 0:02:16]} 22. Re1 {[%clk 0:01:03]}  Qa5 {[%clk 0:02:12]} 23. Re2 {[%clk 0:01:03]}  Bd7 {[%clk 0:02:03]} 24. Kg2 {[%clk 0:01:00]}  Qa4 {[%clk 0:01:56]} 25. Nb3 {[%clk 0:00:56]}  fxe4 {[%clk 0:01:48]} 26. Bxe4 {[%clk 0:00:55]}  Kg7 {[%clk 0:01:47]} 27. f3 {[%clk 0:00:49]}  Bd8 {[%clk 0:01:36]} 28. h5 {[%clk 0:00:44]}  Bg5 {[%clk 0:01:33]} 29. Nh3 {[%clk 0:00:33]}  Bf6 {[%clk 0:01:26]} 30. Nf2 {[%clk 0:00:34]}  a5 {[%clk 0:01:20]} 31. f4 {[%clk 0:00:07]}  Qb4 {[%clk 0:01:18]} 32. g4 {[%clk 0:00:07]}  h6 {[%clk 0:01:11]} 33. hxg6 {[%clk 0:00:07]}  fxg6 {[%clk 0:01:11]} 34. Nd3 {[%clk 0:00:08]}  Qb6 {[%clk 0:01:10]} 35. f5 {[%clk 0:00:08]}  a4 {[%clk 0:01:07]} 36. Nbc1 {[%clk 0:00:08]}  gxf5 {[%clk 0:01:05]} 37. gxf5 {[%clk 0:00:09]}  Bg5 {[%clk 0:01:04]} 38. Kf3 {[%clk 0:00:06]}  Qd8 {[%clk 0:00:58]} 39. Rg2 {[%clk 0:00:05]}  Rxe4 {[%clk 0:00:56]} 40. Kxe4 {[%clk 0:00:05]}  Qf6 {[%clk 0:00:57]} 41. Rcf2 {[%clk 0:00:04]}  Qd4+ {[%clk 0:00:55]} 42. Kf3 {[%clk 0:00:05]}  Bxf5 {[%clk 0:00:52]} 43. Ke2 {[%clk 0:00:06]}  Bxd3+ {[%clk 0:00:52]} 44. Nxd3 {[%clk 0:00:06]}  Qe3+ {[%clk 0:00:52]} 0-1


[Site "https://www.chess.com"]

[Event "Titled Tuesday Blitz May 2 Late 2023"]
[White "Grischuk, Alexander"]
[Black "Kamsky, Gata"]
[WhiteFideId "4126025"]
[BlackFideId "2000024"]
[WhiteElo "2727"]
[BlackElo "2660"]
[Result "1/2-1/2"]
[Round "06"]
[TimeControl "180+2"]
[Date "2023.05.02"]
[WhiteClock "0:00:39"]
[BlackClock "0:01:09"]

1. e4 {[%clk 0:02:58]}  c5 {[%clk 0:02:51]} 2. Nf3 {[%clk 0:02:57]}  e6 {[%clk 0:02:52]} 3. b3 {[%clk 0:02:57]}  b6 {[%clk 0:02:51]} 4. d4 {[%clk 0:02:56]}  cxd4 {[%clk 0:02:49]} 5. Nxd4 {[%clk 0:02:57]}  Bb7 {[%clk 0:02:48]} 6. Nd2 {[%clk 0:02:57]}  Nc6 {[%clk 0:02:47]} 7. Nxc6 {[%clk 0:02:56]}  Bxc6 {[%clk 0:02:46]} 8. Bb2 {[%clk 0:02:56]}  Nf6 {[%clk 0:02:45]} 9. Bd3 {[%clk 0:02:56]}  Qc7 {[%clk 0:02:16]} 10. Qe2 {[%clk 0:02:55]}  Be7 {[%clk 0:02:05]} 11. O-O-O {[%clk 0:02:55]}  d5 {[%clk 0:01:57]} 12. e5 {[%clk 0:02:39]}  Nd7 {[%clk 0:01:56]} 13. Kb1 {[%clk 0:02:36]}  Nc5 {[%clk 0:01:54]} 14. f4 {[%clk 0:02:29]}  Nxd3 {[%clk 0:01:51]} 15. cxd3 {[%clk 0:02:19]}  Bb5 {[%clk 0:01:48]} 16. Nf3 {[%clk 0:02:19]}  Bc5 {[%clk 0:01:36]} 17. g4 {[%clk 0:01:39]}  a5 {[%clk 0:01:33]} 18. Qd2 {[%clk 0:01:36]}  Bb4 {[%clk 0:01:27]} 19. Qe3 {[%clk 0:01:28]}  Bc5 {[%clk 0:01:25]} 20. Nd4 {[%clk 0:01:21]}  Qd7 {[%clk 0:01:15]} 21. f5 {[%clk 0:01:12]}  O-O-O {[%clk 0:01:13]} 22. Rc1 {[%clk 0:00:40]}  Kb7 {[%clk 0:01:11]} 23. a4 {[%clk 0:00:38]}  Ba6 {[%clk 0:01:09]} 24. Ka2 {[%clk 0:00:39]}  Rc8 {[%clk 0:01:09]} 1/2-1/2


[Site "https://www.chess.com"]

[Event "Titled Tuesday Blitz May 2 Late 2023"]
[White "Matlakov, Maxim"]
[Black "Mekhitarian, Krikor Sevag"]
[WhiteFideId "4168003"]
[BlackFideId "2107660"]
[WhiteElo "2666"]
[BlackElo "2604"]
[Result "1-0"]
[Round "06"]
[TimeControl "180+2"]
[Date "2023.05.02"]
[WhiteClock "0:00:15"]
[BlackClock "0:00:01"]

1. e4 {[%clk 0:03:00]}  e6 {[%clk 0:02:59]} 2. d4 {[%clk 0:03:00]}  d5 {[%clk 0:03:00]} 3. Nd2 {[%clk 0:03:00]}  c5 {[%clk 0:03:00]} 4. Ngf3 {[%clk 0:03:00]}  cxd4 {[%clk 0:03:00]} 5. Nxd4 {[%clk 0:03:01]}  Nf6 {[%clk 0:03:01]} 6. e5 {[%clk 0:03:02]}  Nfd7 {[%clk 0:02:59]} 7. N2f3 {[%clk 0:03:02]}  Nc6 {[%clk 0:02:54]} 8. Bf4 {[%clk 0:03:02]}  Qb6 {[%clk 0:02:45]} 9. Rb1 {[%clk 0:03:01]}  Be7 {[%clk 0:02:28]} 10. c3 {[%clk 0:03:01]}  O-O {[%clk 0:02:26]} 11. Bd3 {[%clk 0:03:01]}  Nc5 {[%clk 0:02:20]} 12. Bc2 {[%clk 0:03:01]}  Ne4 {[%clk 0:02:21]} 13. O-O {[%clk 0:02:57]}  f6 {[%clk 0:02:19]} 14. exf6 {[%clk 0:02:43]}  Bxf6 {[%clk 0:02:02]} 15. Be3 {[%clk 0:02:43]}  Qc7 {[%clk 0:01:55]} 16. Nxc6 {[%clk 0:02:41]}  bxc6 {[%clk 0:01:48]} 17. Bxe4 {[%clk 0:02:41]}  dxe4 {[%clk 0:01:49]} 18. Nd2 {[%clk 0:02:41]}  Ba6 {[%clk 0:01:43]} 19. Nxe4 {[%clk 0:02:41]}  Bxf1 {[%clk 0:01:41]} 20. Qxf1 {[%clk 0:02:41]}  Be7 {[%clk 0:01:35]} 21. Qc4 {[%clk 0:02:40]}  Qd7 {[%clk 0:01:33]} 22. Re1 {[%clk 0:02:25]}  Qd5 {[%clk 0:01:32]} 23. Qa4 {[%clk 0:02:25]}  a5 {[%clk 0:01:26]} 24. Rd1 {[%clk 0:02:19]}  Qb5 {[%clk 0:01:25]} 25. Qc2 {[%clk 0:02:18]}  Rad8 {[%clk 0:01:25]} 26. Re1 {[%clk 0:02:17]}  Qd3 {[%clk 0:01:23]} 27. Qxd3 {[%clk 0:02:17]}  Rxd3 {[%clk 0:01:24]} 28. Kf1 {[%clk 0:02:07]}  Rd5 {[%clk 0:01:13]} 29. Ke2 {[%clk 0:01:59]}  a4 {[%clk 0:01:12]} 30. Nd2 {[%clk 0:01:52]}  Bc5 {[%clk 0:01:03]} 31. Nc4 {[%clk 0:01:32]}  Bxe3 {[%clk 0:01:02]} 32. Nxe3 {[%clk 0:01:33]}  Rb5 {[%clk 0:00:52]} 33. Rb1 {[%clk 0:01:30]}  Rfb8 {[%clk 0:00:50]} 34. Nc4 {[%clk 0:01:26]}  Rc5 {[%clk 0:00:50]} 35. Na3 {[%clk 0:01:10]}  Re5+ {[%clk 0:00:44]} 36. Kf1 {[%clk 0:01:08]}  Rc5 {[%clk 0:00:36]} 37. Ke2 {[%clk 0:01:06]}  Rd8 {[%clk 0:00:30]} 38. Nc2 {[%clk 0:01:02]}  Rcd5 {[%clk 0:00:30]} 39. Nd4 {[%clk 0:00:57]}  c5 {[%clk 0:00:30]} 40. Nf3 {[%clk 0:00:37]}  c4 {[%clk 0:00:27]} 41. Rc1 {[%clk 0:00:33]}  Kf7 {[%clk 0:00:25]} 42. Rc2 {[%clk 0:00:34]}  Kf6 {[%clk 0:00:25]} 43. Nd2 {[%clk 0:00:32]}  Rc8 {[%clk 0:00:25]} 44. f3 {[%clk 0:00:30]}  Ke7 {[%clk 0:00:25]} 45. Ne4 {[%clk 0:00:29]}  Rb5 {[%clk 0:00:24]} 46. Nd2 {[%clk 0:00:30]}  Rg5 {[%clk 0:00:20]} 47. g3 {[%clk 0:00:29]}  Rh5 {[%clk 0:00:20]} 48. h4 {[%clk 0:00:28]}  Rb5 {[%clk 0:00:20]} 49. Ke3 {[%clk 0:00:26]}  Rcc5 {[%clk 0:00:17]} 50. Ke2 {[%clk 0:00:26]}  Rc6 {[%clk 0:00:16]} 51. Ke3 {[%clk 0:00:24]}  g6 {[%clk 0:00:16]} 52. Ke2 {[%clk 0:00:25]}  h6 {[%clk 0:00:17]} 53. Ke3 {[%clk 0:00:25]}  h5 {[%clk 0:00:15]} 54. Ke2 {[%clk 0:00:25]}  g5 {[%clk 0:00:16]} 55. hxg5 {[%clk 0:00:24]}  Rxg5 {[%clk 0:00:17]} 56. Ne4 {[%clk 0:00:25]}  Rb5 {[%clk 0:00:17]} 57. Nd2 {[%clk 0:00:24]}  Rc8 {[%clk 0:00:17]} 58. Ke3 {[%clk 0:00:24]}  Rg5 {[%clk 0:00:16]} 59. Ne4 {[%clk 0:00:23]}  Rb5 {[%clk 0:00:16]} 60. Nd2 {[%clk 0:00:23]}  Kf7 {[%clk 0:00:13]} 61. Ne4 {[%clk 0:00:21]}  Rd5 {[%clk 0:00:07]} 62. Rh2 {[%clk 0:00:20]}  Kg6 {[%clk 0:00:07]} 63. Re2 {[%clk 0:00:15]}  Rd3+ {[%clk 0:00:04]} 64. Kf2 {[%clk 0:00:15]}  Rf8 {[%clk 0:00:04]} 65. Nd2 {[%clk 0:00:15]}  Kf7 {[%clk 0:00:01]} 66. Nxc4 {[%clk 0:00:15]}  Ke7 {[%clk 0:00:01]} 67. Ne5 {[%clk 0:00:15]}  Rdd8 {[%clk 0:00:01]} 68. Ng6+ {[%clk 0:00:15]}  Kf6 {[%clk 0:00:01]} 69. Nxf8 {[%clk 0:00:16]}  Rxf8 {[%clk 0:00:01]} 70. Ke3 {[%clk 0:00:16]}  Rb8 {[%clk 0:00:02]} 71. Rd2 {[%clk 0:00:16]}  Kg5 {[%clk 0:00:02]} 72. Rh2 {[%clk 0:00:16]}  e5 {[%clk 0:00:01]} 73. Kd3 {[%clk 0:00:16]}  Rd8+ {[%clk 0:00:01]} 74. Ke4 {[%clk 0:00:16]}  Rf8 {[%clk 0:00:02]} 75. Rf2 {[%clk 0:00:15]}  Kg6 {[%clk 0:00:02]} 76. b4 {[%clk 0:00:15]}  Rd8 {[%clk 0:00:01]} 77. b5 {[%clk 0:00:15]}  Rc8 {[%clk 0:00:02]} 78. Rc2 {[%clk 0:00:14]}  Rc5 {[%clk 0:00:01]} 79. c4 {[%clk 0:00:14]}  Kf6 {[%clk 0:00:01]} 80. b6 {[%clk 0:00:14]}  Ke6 {[%clk 0:00:01]} 81. b7 {[%clk 0:00:15]} 1-0


[Site "https://www.chess.com"]